bitfinex-derivatives/quotes_ETHF0:USTF0_20241007
["timestamp","ask_amount","ask_price","bid_price","bid_amount"]
[1728288264392,0.3993,2487.1,2486.7,0.701]
[1728288264699,0.3993,2487.1,2486.8,2.83]
[1728288264700,0.68077,2487.1,2486.8,2.83]
[1728288264992,0.4217,2487.0,2486.8,2.83]
[1728288266300,0.70317,2487.0,2486.8,2.83]
[1728288266598,0.4217,2487.0,2486.9,1.3]
[1728288266791,0.70317,2487.0,2486.9,1.3]
[1728288267797,0.28148,2486.9,2486.8,1.3]
[1728288267996,0.4217,2487.0,2486.8,1.3]
[1728288268203,0.70318,2487.0,2486.8,1.3]
[1728288268701,0.28148,2486.9,2486.7,0.4195]
[1728288268890,1.7217,2487.0,2486.7,0.4195]
[1728288269092,0.4217,2487.0,2486.8,1.3]
[1728288269298,0.28148,2486.9,2486.8,1.3]
[1728288269497,0.4217,2487.0,2486.8,1.3]
[1728288270005,0.28148,2486.9,2486.8,1.3]
[1728288270496,0.28148,2486.9,2486.7,0.4195]
[1728288270497,0.67848,2486.9,2486.7,0.4195]
[1728288270799,0.2815,2486.8,2486.7,0.4195]
[1728288271787,0.397,2486.9,2486.7,0.4195]
[1728288271991,0.67849,2486.9,2486.7,1.7195]
[1728288272592,0.28149,2486.9,2486.7,1.7195]
[1728288273899,0.4217,2487.0,2486.7,1.7195]
[1728288274098,0.2815,2486.8,2486.7,1.7195]
[1728288276102,0.28149,2486.9,2486.7,1.7195]
[1728288276301,0.4217,2487.0,2486.7,1.7195]
[1728288276503,0.2815,2486.8,2486.7,1.7195]
[1728288278015,0.28149,2486.9,2486.7,1.7195]
[1728288278406,0.2815,2486.8,2486.7,1.7195]
[1728288278799,0.28149,2486.9,2486.7,1.7195]
[1728288279113,0.70318,2487.0,2486.8,1.3]
[1728288279306,0.28148,2486.9,2486.8,1.3]
[1728288280604,0.4217,2487.0,2486.8,1.3]
[1728288280917,0.70318,2487.0,2486.8,1.3]
[1728288281607,0.4217,2487.0,2486.8,1.3]
[1728288281802,0.28148,2486.9,2486.8,1.3]
[1728288283910,0.2815,2486.8,2486.7,1.7195]
[1728288288221,0.4217,2487.0,2486.7,1.7195]
[1728288288419,0.28149,2486.9,2486.7,1.7195]
[1728288290309,0.70318,2487.0,2486.7,2.00101]
[1728288290511,0.28149,2486.9,2486.7,1.7195]
[1728288290708,0.4217,2487.0,2486.7,1.7195]
[1728288290911,0.28148,2486.9,2486.7,1.7195]
[1728288291110,0.4217,2487.0,2486.7,2.00101]
[1728288291111,0.70318,2487.0,2486.7,2.00101]
[1728288291712,0.3993,2487.1,2486.7,2.00101]
[1728288291713,0.28149,2486.9,2486.7,0.4195]
[1728288291908,0.28148,2487.0,2486.9,1.3]
[1728288294419,0.67496,2487.2,2486.9,1.58148]
[1728288294620,0.67496,2487.2,2487.1,1.3]
[1728288295313,0.3935,2487.2,2487.1,1.7223]
[1728288295523,0.69593,2487.4,2487.1,2.00376]
[1728288295813,0.69593,2487.4,2487.3,1.3]
[1728288297416,0.28145,2487.3,2487.2,1.3]
[1728288300221,14.5286,2487.3,2486.6,1.0566995]
[1728288300416,0.28151,2486.7,2486.4,4.5078]
[1728288300614,0.4172,2486.6,2486.5,0.3863]
[1728288300817,0.4172,2486.6,2486.5,1.6863]
[1728288303126,0.69872,2486.6,2486.5,1.6863]
[1728288303521,0.4172,2486.6,2486.5,1.6863]
[1728288303717,0.4042,2486.8,2486.5,1.6863]
[1728288303922,0.6857,2486.8,2486.7,1.3]
[1728288304121,0.4042,2486.8,2486.7,1.3]
[1728288304629,0.6857,2486.8,2486.7,1.3]
[1728288304830,0.3887,2486.9,2486.7,1.3]
[1728288305128,0.69547,2487.1,2486.7,4.5078]
[1728288305319,1.09697,2487.1,2487.0,1.3]
[1728288305927,0.4015,2487.1,2487.0,1.3]
[1728288306628,0.68296,2487.1,2487.0,1.3]
[1728288308525,0.68296,2487.1,2486.9,3.213]
[1728288308720,0.4015,2487.1,2486.9,3.213]
[1728288309032,0.28147,2487.0,2486.9,3.213]
[1728288310126,0.28147,2487.0,2486.9,0.393]
[1728288311036,0.4015,2487.1,2486.5,1.0566995]
[1728288311233,0.8199,2486.9,2486.5,1.4619995]
[1728288311432,0.4099,2486.9,2486.6,3.10151]
[1728288311635,0.28148,2487.0,2486.8,2.82]
[1728288312338,0.28147,2487.0,2486.8,2.82]
[1728288312638,0.28147,2487.0,2486.9,0.4053]
[1728288313440,0.28147,2487.0,2486.6,3.10151]
[1728288313635,0.68297,2487.1,2486.8,0.4053]
[1728288314542,0.28147,2487.0,2486.8,0.4053]
[1728288314737,0.4015,2487.1,2486.8,0.4053]
[1728288314940,0.68297,2487.1,2486.8,0.4053]
[1728288315145,0.68297,2487.1,2486.8,0.68679]
[1728288315643,0.68297,2487.1,2486.8,0.4053]
[1728288315841,0.28148,2487.0,2486.8,0.4053]
[1728288319351,0.68297,2487.1,2486.8,0.4053]
[1728288319739,0.4015,2487.1,2486.8,0.4053]
[1728288319947,0.28147,2487.0,2486.8,0.4053]
[1728288322244,0.4015,2487.1,2486.8,0.4053]
[1728288322743,0.4015,2487.1,2486.9,0.4091]
[1728288322946,0.4015,2487.1,2486.9,0.7441]
[1728288323449,0.4015,2487.1,2487.0,0.28147]
[1728288323845,6.4233,2487.6,2486.9,0.7441]
[1728288324146,0.28143,2487.4,2487.1,0.28146]
[1728288324337,0.28143,2487.4,2487.0,0.28147]
[1728288324843,0.8093,2487.5,2487.3,0.28143]
[1728288325053,0.8093,2487.5,2487.4,0.66873]
[1728288325257,3.2078,2487.6,2487.5,0.28142]
[1728288325541,0.806,2488.2,2487.5,0.28142]
[1728288325542,0.28137,2488.0,2487.6,0.2814]
[1728288325750,0.28137,2488.0,2487.7,2.82]
[1728288327644,0.28137,2488.0,2487.6,0.2814]
[1728288329141,0.28139,2487.8,2487.5,6.0278]
[1728288329342,0.28138,2487.9,2487.5,6.30921]
[1728288329542,0.28138,2487.8,2487.5,6.30921]
[1728288329943,0.3995,2487.7,2487.5,6.30921]
[1728288330650,0.3995,2487.7,2487.5,4.78921]
[1728288330847,0.3995,2487.7,2487.6,0.2814]
[1728288331146,0.3995,2487.7,2487.5,4.78921]
[1728288331353,0.3995,2487.7,2487.6,0.2814]
[1728288331742,1.6995,2487.7,2487.5,3.2078]
[1728288331943,1.6995,2487.7,2487.4,0.3873]
[1728288332148,0.28142,2487.5,2487.4,0.3873]
[1728288332845,2.1388,2487.6,2487.4,0.3873]
[1728288332846,1.12021,2487.6,2487.4,0.3873]
[1728288334446,0.28142,2487.5,2487.4,0.3873]
[1728288334649,0.28143,2487.4,2487.1,1.58145]
[1728288334847,1.3,2487.5,2487.1,1.6931]
[1728288335053,0.3935,2487.3,2487.1,1.97456]
[1728288335450,0.67494,2487.3,2487.1,0.3931]
[1728288335656,0.3935,2487.3,2487.1,1.6931]
[1728288335949,1.58145,2487.2,2486.9,4.78928]
[1728288336154,0.3935,2487.3,2486.9,4.78928]
[1728288336155,1.6935,2487.3,2486.9,4.78928]
[1728288336453,0.28146,2487.2,2486.9,3.48928]
[1728288337242,0.67494,2487.3,2487.0,0.28147]
[1728288338250,0.28145,2487.2,2486.9,3.48928]
[1728288338454,0.28146,2487.2,2486.9,3.48928]
[1728288340153,0.67494,2487.3,2487.0,0.28147]
[1728288343360,0.3935,2487.3,2486.9,3.2078]
[1728288343567,0.28145,2487.2,2486.9,3.48928]
[1728288343755,0.70385,2487.2,2486.9,3.48928]
[1728288344163,1.11885,2487.2,2486.9,3.48928]
[1728288345250,0.8374,2487.2,2487.0,0.28147]
[1728288347863,1.11886,2487.2,2486.9,0.28148]
[1728288348968,1.11886,2487.2,2486.8,4.26639]
[1728288348969,0.28147,2487.1,2486.8,4.26639]
[1728288349357,0.28147,2487.1,2486.9,0.28148]
[1728288349567,0.28147,2487.1,2486.8,4.26639]
[1728288349767,0.4187,2487.0,2486.8,3.9849]
[1728288349957,0.4187,2487.0,2486.9,0.28148]
[1728288353067,0.4187,2487.0,2486.9,3.48928]
[1728288355571,0.4187,2487.0,2486.9,0.28148]
[1728288356173,0.4187,2487.0,2486.9,3.48928]
[1728288356571,0.4187,2487.0,2486.9,4.78928]
[1728288356972,0.70385,2487.2,2486.9,4.78928]
[1728288358772,0.70385,2487.2,2487.0,0.28147]
[1728288359173,0.70385,2487.2,2486.9,4.78928]
[1728288359974,0.70385,2487.2,2486.9,1.58148]
[1728288360174,0.70385,2487.2,2486.9,4.78928]
[1728288361073,0.70385,2487.2,2486.9,4.5078]
[1728288361268,0.70385,2487.2,2486.9,4.78928]
[1728288362574,0.28147,2487.1,2486.9,3.2078]
[1728288362771,2.00386,2487.2,2486.9,3.48928]
[1728288363079,0.4065,2487.0,2486.9,3.2078]
[1728288363574,0.4065,2487.0,2486.9,3.48928]
[1728288363775,0.4065,2487.0,2486.9,3.2078]
[1728288364176,0.4065,2487.0,2486.9,3.48928]
[1728288365474,0.4065,2487.0,2486.9,0.28148]
[1728288365681,0.4065,2487.0,2486.9,3.48928]
[1728288366377,0.4065,2487.0,2486.9,4.78928]
[1728288366675,0.70386,2487.2,2486.9,5.12428]
[1728288368980,0.4224,2487.2,2486.9,4.8428]
[1728288369276,0.28142,2487.5,2487.2,0.28145]
[1728288369574,0.28142,2487.5,2487.3,0.70714]
[1728288369882,0.28141,2487.6,2487.3,2.0607]
[1728288370067,0.28141,2487.6,2487.3,2.34213]
[1728288372083,0.2814,2487.6,2487.3,2.34213]
[1728288372675,1.3,2487.5,2487.3,0.4257]
[1728288372883,1.58141,2487.6,2487.3,0.70714]
[1728288373691,1.3,2487.6,2487.3,0.4257]
[1728288373977,1.3,2487.6,2487.4,0.28143]
[1728288374282,0.406,2487.7,2487.5,1.58141]
[1728288375777,0.406,2487.7,2487.6,0.2814]
[1728288376082,1.58138,2487.9,2487.6,0.2814]
[1728288376387,1.58138,2487.9,2487.7,0.4135]
[1728288376881,0.414,2488.0,2487.7,3.90269]
[1728288377183,0.69536,2488.0,2487.7,3.90269]
[1728288377486,0.69536,2488.0,2487.7,3.9562]
[1728288378594,1.206,2488.7,2487.7,3.9562]
[1728288378595,0.806,2488.8,2487.8,5.3192]
[1728288378889,1.3,2488.5,2488.1,4.5078]
[1728288379087,0.28133,2488.3,2488.1,3.2078]
[1728288379275,1.7218,2488.4,2488.1,3.2078]
[1728288379276,2.39202,2488.4,2488.1,3.2078]
[1728288379476,0.4236,2488.2,2488.1,3.2078]
[1728288379687,0.4236,2488.2,2488.1,3.6123]
[1728288381191,0.4236,2488.2,2488.1,4.9123]
[1728288382788,0.4218,2488.4,2488.2,0.28133]
[1728288383889,0.4218,2488.4,2488.1,5.19364]
[1728288384091,0.70312,2488.4,2488.1,4.9123]
[1728288384289,0.70312,2488.4,2488.1,5.19365]
[1728288384486,2.00312,2488.4,2488.1,5.19365]
[1728288384687,2.00312,2488.4,2488.1,3.6123]
[1728288385390,1.7218,2488.4,2488.1,3.89364]
[1728288385591,1.7218,2488.4,2488.2,0.28134]
[1728288385991,1.7218,2488.4,2488.1,3.89364]
[1728288386290,0.4218,2488.4,2488.2,1.3]
[1728288387085,0.4218,2488.4,2488.2,1.58133]
[1728288387284,0.4218,2488.4,2488.3,0.28133]
[1728288387486,0.4218,2488.4,2488.2,1.99443]
[1728288388088,0.4218,2488.4,2488.3,1.3]
[1728288389380,3.4891,2488.6,2488.3,1.3]
[1728288389591,0.28126,2488.9,2488.5,0.28129]
[1728288389786,0.70302,2489.4,2488.7,1.3]
[1728288389787,0.28127,2488.8,2488.7,1.3]
[1728288389982,0.28127,2488.8,2488.6,0.389]
[1728288389983,0.28128,2488.8,2488.6,0.389]
[1728288390185,3.91087,2489.2,2488.4,3.6073]
[1728288390186,2.5437,2488.7,2488.4,3.6073]
[1728288390391,1.3,2488.6,2488.4,3.2078]
[1728288390599,1.5813,2488.5,2488.4,3.2078]
[1728288390791,0.28134,2488.2,2488.1,3.6073]
[1728288390992,0.28131,2488.4,2488.1,3.6073]
[1728288391301,0.419,2488.3,2488.1,3.6073]
[1728288391491,0.8235,2488.3,2488.1,3.6073]
[1728288392789,0.28134,2488.2,2488.1,3.2078]
[1728288392991,0.28135,2488.1,2487.7,3.48919]
[1728288393287,1.3,2488.1,2487.7,4.5078]
[1728288393493,1.58135,2488.1,2487.7,4.78919]
[1728288393796,1.3,2488.1,2487.8,0.28138]
[1728288393988,2.00154,2488.2,2487.8,1.58138]
[1728288394294,0.28135,2488.1,2487.8,1.58138]
[1728288395495,0.28135,2488.1,2487.8,1.3]
[1728288395696,0.28136,2488.0,2487.8,1.3]
[1728288395901,0.4061,2487.9,2487.8,1.3]
[1728288396296,0.4061,2487.9,2487.8,1.58138]
[1728288398707,0.70154,2488.2,2487.8,1.58138]
[1728288398907,1.10084,2488.2,2487.8,1.58138]
[1728288399106,1.10084,2488.2,2487.9,1.714]
[1728288399797,0.28135,2488.1,2487.9,1.714]
[1728288401102,0.8195,2488.2,2487.9,0.414]
[1728288401302,0.28136,2488.0,2487.7,3.2078]
[1728288401605,0.28136,2488.0,2487.8,1.3]
[1728288404904,0.28137,2488.0,2487.8,1.3]
[1728288406437,1.3,2491.0,2489.1,3.2078]
[1728288406711,0.28105,2490.8,2490.4,3.2078]
[1728288406912,1.3,2490.5,2490.1,3.2078]
[1728288407109,1.3,2490.3,2490.1,3.2078]
[1728288407306,2.1104,2490.2,2489.8,3.2078]
[1728288408017,0.8104,2490.2,2489.8,3.2078]
[1728288409713,2.1104,2490.2,2489.8,3.2078]
[1728288410109,0.3985,2490.1,2489.8,3.2078]
[1728288411406,3.2185,2490.1,2489.8,3.2078]
[1728288411615,3.10114,2489.9,2489.8,3.2078]
[1728288412022,13.11714,2489.9,2489.8,3.2078]
[1728288413010,10.29714,2489.9,2489.8,3.2078]
[1728288418513,0.28118,2489.6,2489.5,3.2078]
[1728288418714,3.10118,2489.6,2489.5,3.2078]
[1728288418921,13.11798,2489.6,2489.5,3.2078]
[1728288419324,7.11798,2489.6,2489.5,3.2078]
[1728288420416,2.82,2490.0,2489.5,3.2078]
[1728288420614,0.28116,2489.8,2489.5,3.2078]
[1728288420813,0.3985,2490.1,2489.5,3.2078]
[1728288421118,0.3985,2490.1,2489.8,3.2078]
[1728288421119,0.67963,2490.1,2489.8,3.2078]
[1728288422425,0.28113,2490.0,2489.8,3.2078]
[1728288423026,0.67963,2490.1,2489.8,3.2078]
[1728288423327,0.28113,2490.1,2489.8,3.2078]
[1728288423513,0.28114,2490.0,2489.8,3.2078]
[1728288424825,0.8104,2490.2,2489.8,3.2078]
[1728288425013,0.28113,2490.0,2489.8,3.2078]
[1728288426516,0.28114,2489.9,2489.8,3.2078]
[1728288426721,0.8104,2490.2,2489.8,3.2078]
[1728288426926,0.28114,2490.0,2489.8,3.2078]
[1728288428626,0.8104,2490.2,2489.8,3.2078]
[1728288428627,0.28114,2489.9,2489.8,3.2078]
[1728288429627,0.28114,2490.0,2489.8,3.2078]
[1728288429833,0.8104,2490.2,2489.8,3.2078]
[1728288430021,0.28114,2490.0,2489.8,3.2078]
[1728288431523,0.3871,2490.2,2489.8,3.2078]
[1728288431823,0.28112,2490.1,2489.8,3.2078]
[1728288432227,0.28113,2490.0,2489.8,3.2078]
[1728288432420,0.28113,2490.1,2489.8,3.2078]
[1728288432626,0.28114,2490.0,2489.8,3.2078]
[1728288432930,0.66822,2490.2,2489.9,0.4174]
[1728288433126,0.66822,2490.2,2490.1,3.2078]
[1728288433518,4.68422,2490.2,2490.1,3.2078]
[1728288434724,4.016,2490.2,2490.1,3.2078]
[1728288435132,4.29711,2490.2,2490.1,3.2078]
[1728288435427,0.28111,2490.3,2490.1,3.2078]
[1728288435739,0.28111,2490.2,2490.1,3.2078]
[1728288436833,4.29711,2490.2,2490.1,3.2078]
[1728288438338,0.28116,2489.8,2489.7,3.2078]
[1728288442435,0.28116,2489.8,2489.4,3.5989]
[1728288442436,0.28119,2489.5,2489.4,3.5989]
[1728288444132,3.52291,2489.8,2489.4,3.5989]
[1728288444437,0.28119,2489.6,2489.4,3.5989]
[1728288444732,2.82,2489.8,2489.4,3.5989]
[1728288444933,0.28119,2489.6,2489.4,3.5989]
[1728288445621,0.28117,2489.7,2489.4,3.5989]
[1728288445825,0.28119,2489.6,2489.4,3.5989]
[1728288446328,0.28119,2489.5,2489.4,3.5989]
[1728288447233,2.82,2489.8,2489.4,3.5989]
[1728288447431,0.28118,2489.6,2489.4,3.5989]
[1728288448030,2.82,2489.8,2489.4,3.5989]
[1728288448236,0.28118,2489.6,2489.4,3.5989]
[1728288450938,2.82,2489.8,2489.4,3.5989]
[1728288451139,0.28119,2489.6,2489.4,3.5989]
[1728288451834,0.28119,2489.6,2489.4,0.3911]
[1728288452030,0.28119,2489.6,2489.5,3.2078]
[1728288453740,0.28119,2489.5,2489.4,0.3911]
[1728288453934,0.28119,2489.5,2489.4,3.5989]
[1728288454135,0.28119,2489.6,2489.4,3.5989]
[1728288454337,3.519,2489.8,2489.4,3.5989]
[1728288454541,1.3,2489.5,2489.4,3.5989]
[1728288456142,1.58119,2489.5,2489.4,3.5989]
[1728288456542,1.3,2489.5,2489.4,3.5989]
[1728288457542,1.3,2489.5,2489.4,3.2078]
[1728288459140,1.58119,2489.5,2489.4,3.2078]
[1728288461744,1.3,2489.5,2489.4,3.2078]
[1728288462245,1.58119,2489.5,2489.4,3.2078]
[1728288462545,1.58119,2489.5,2489.3,0.4256]
[1728288462743,1.3,2489.5,2489.4,3.2078]
[1728288463333,1.58119,2489.5,2489.4,3.2078]
[1728288466642,1.58119,2489.5,2489.1,3.2078]
[1728288466643,1.3,2489.5,2489.1,3.2078]
[1728288466941,1.58122,2489.2,2489.1,3.2078]
[1728288468950,5.59882,2489.2,2489.1,3.2078]
[1728288470147,5.90181457,2489.2,2489.1,3.2078]
[1728288471838,11.90181457,2489.2,2489.1,3.2078]
[1728288472043,0.28127,2488.8,2488.7,3.6328]
[1728288472245,1.58127,2488.8,2488.7,3.6328]
[1728288472745,1.58127,2488.8,2488.7,3.2078]
[1728288473642,11.59967,2488.8,2488.7,3.2078]
[1728288474744,11.90161152,2488.8,2488.7,3.2078]
[1728288474953,5.90161152,2488.8,2488.7,3.2078]
[1728288475450,5.59967,2488.8,2488.7,3.2078]
[1728288475952,5.3184,2488.8,2488.4,3.2078]
[1728288476150,1.9066,2488.9,2488.4,3.2078]
[1728288476151,1.3,2488.5,2488.4,3.2078]
[1728288477254,1.58123,2489.2,2488.4,14.5262]
[1728288477551,1.58123,2489.2,2489.0,3.2078]
[1728288477750,1.58123,2489.2,2489.1,0.3836]
[1728288478547,0.28123,2489.2,2489.1,0.3836]
[1728288484560,0.28124,2489.1,2489.0,3.2078]
[1728288485561,3.10124,2489.1,2489.0,3.2078]
[1728288485954,7.11884,2489.1,2489.0,3.2078]
[1728288487556,0.28128,2488.8,2488.7,3.2078]
[1728288492463,1.09208,2488.8,2488.7,3.2078]
[1728288494170,3.10126,2488.9,2488.7,3.2078]
[1728288494468,3.10126,2488.9,2488.8,0.4246]
[1728288496964,0.8321,2489.1,2488.8,0.4246]
[1728288497170,0.4097,2489.4,2489.0,3.2078]
[1728288497474,0.28124,2489.1,2489.0,3.2078]
[1728288497679,3.10124,2489.1,2489.0,3.2078]
[1728288498372,1.58124,2489.1,2489.0,3.2078]
[1728288504485,1.3,2489.1,2489.0,3.2078]
[1728288505176,1.58124,2489.1,2489.0,3.2078]
[1728288508577,0.69092,2489.3,2489.0,3.2078]
[1728288508778,0.28121,2489.4,2489.0,4.78904]
[1728288509083,0.28121,2489.4,2489.3,3.2078]
[1728288509280,1.58121,2489.4,2489.3,3.2078]
[1728288510079,0.28121,2489.4,2489.3,3.2078]
[1728288510276,1.58121,2489.4,2489.3,3.2078]
[1728288513386,0.8302,2489.5,2489.3,3.2078]
[1728288513684,2.4114,2489.5,2489.4,0.4192]
[1728288522701,2.71049656,2489.5,2489.4,0.4192]
[1728288524295,2.71049656,2489.5,2489.4,3.627]
[1728288525991,2.71049656,2489.5,2489.4,2.5689]
[1728288525992,12.72729656,2489.5,2489.4,2.5689]
[1728288526295,15.92168029,2489.5,2488.4,0.8339]
[1728288526496,1.3,2488.5,2488.4,0.8339]
[1728288527397,0.2813,2488.6,2488.4,0.8339]
[1728288528296,0.8324,2488.9,2488.5,1.3]
[1728288528297,0.4197,2488.9,2488.5,1.3]
[1728288528600,0.28122,2489.3,2488.8,1.58127]
[1728288528797,0.28122,2489.3,2489.0,1.3]
[1728288529392,1.3,2489.4,2488.9,4.3351]
[1728288529595,0.28121,2489.3,2488.9,4.3351]
[1728288529994,0.28123,2489.2,2488.9,4.3351]
[1728288530599,3.2397,2489.5,2488.9,4.3351]
[1728288530600,0.28122,2489.3,2488.9,4.3351]
[1728288530900,0.28123,2489.2,2488.9,4.3351]
[1728288531097,0.28124,2489.1,2488.9,4.3351]
[1728288531597,2.82,2489.1,2488.9,3.6164]
[1728288531797,0.66845,2489.0,2488.9,0.4086]
[1728288532802,0.3872,2489.0,2488.9,0.4086]
[1728288532991,0.28123,2489.2,2488.9,0.4086]
[1728288533197,0.28123,2489.2,2489.0,0.411]
[1728288534293,0.28121,2489.3,2489.0,0.411]
[1728288535610,0.28122,2489.3,2489.0,0.411]
[1728288536498,0.28123,2489.2,2489.0,0.411]
[1728288536902,4.0162,2489.5,2489.0,0.411]
[1728288536903,0.28121,2489.3,2489.0,0.411]
[1728288537402,0.28123,2489.2,2489.0,0.411]
[1728288537810,4.0162,2489.5,2489.0,0.411]
[1728288538112,0.28122,2489.3,2489.0,0.411]
[1728288538302,4.0162,2489.5,2489.0,0.411]
[1728288538509,0.28122,2489.2,2489.0,0.411]
[1728288540707,2.82,2489.3,2489.0,0.411]
[1728288541100,0.28123,2489.2,2489.0,0.411]
[1728288541301,3.10122,2489.3,2489.0,0.411]
[1728288542111,2.82,2489.3,2489.0,0.411]
[1728288543106,3.10121,2489.3,2489.0,0.411]
[1728288543600,2.82,2489.3,2489.0,0.411]
[1728288544712,3.2259,2489.5,2489.1,0.28123]
[1728288544910,3.2259,2489.5,2489.2,0.3353]
[1728288545107,3.50709,2489.5,2489.3,0.3896]
[1728288545309,3.50709,2489.5,2489.0,0.69224]
[1728288545310,0.2812,2489.4,2489.0,0.411]
[1728288545619,2.82,2489.3,2489.0,0.402]
[1728288545818,0.28123,2489.2,2489.0,0.402]
[1728288546415,0.4104,2489.1,2489.0,0.402]
[1728288547012,3.10122,2489.3,2489.0,0.402]
[1728288547220,3.51162,2489.3,2489.1,0.414]
[1728288547609,0.28122,2489.2,2489.1,0.414]
[1728288550213,0.28124,2489.1,2489.0,0.402]
[1728288551117,0.28124,2489.1,2488.9,3.2078]
[1728288553424,3.2304,2489.3,2488.9,3.2078]
[1728288553623,0.28124,2489.1,2488.9,3.2078]
[1728288553811,0.28125,2489.0,2488.9,3.2078]
[1728288554018,0.28127,2488.8,2488.6,3.2078]
[1728288554314,0.389,2488.7,2488.6,3.2078]
[1728288554516,0.389,2488.7,2488.5,0.4192]
[1728288554719,0.389,2488.7,2488.3,3.2078]
[1728288554720,0.28131,2488.4,2488.3,3.2078]
[1728288554926,3.10132,2488.4,2488.1,0.4098]
[1728288555126,0.68693,2488.3,2488.1,0.4098]
[1728288557425,0.4056,2488.3,2488.1,0.4098]
[1728288559031,0.68693,2488.3,2488.1,0.4098]
[1728288559929,0.4056,2488.3,2488.1,0.4098]
[1728288560128,0.68693,2488.3,2488.1,0.4098]
[1728288560836,0.68693,2488.3,2488.1,3.6176]
[1728288561524,0.4056,2488.3,2488.1,3.6176]
[1728288561724,0.4056,2488.3,2488.1,3.2078]
[1728288561925,0.68693,2488.3,2488.1,3.2078]
[1728288564429,0.68693,2488.3,2487.9,0.4199]
[1728288566432,1.3,2488.2,2487.9,0.4199]
[1728288567026,1.58134,2488.2,2487.9,0.4199]
[1728288567530,1.58134,2488.2,2487.9,3.6277]
[1728288568720,1.3,2488.2,2487.9,3.6277]
[1728288568923,1.58136,2488.0,2487.9,3.2078]
[1728288569123,1.3,2488.0,2487.9,3.2078]
[1728288574435,1.58136,2488.0,2487.9,3.2078]
[1728288574638,1.3,2488.0,2487.9,3.2078]
[1728288575138,1.6951,2488.0,2487.9,3.2078]
[1728288575344,1.97646,2488.0,2487.9,3.2078]
[1728288575531,1.97646,2488.0,2487.6,3.6339]
[1728288575831,1.6867,2487.9,2487.6,3.6339]
[1728288576037,1.6867,2487.9,2487.6,3.9153]
[1728288578436,1.3,2487.7,2487.6,3.6339]
[1728288579535,1.58139,2487.7,2487.6,3.6339]
[1728288579733,1.3,2487.7,2487.4,0.4037]
[1728288580036,1.58142,2487.5,2487.3,3.2078]
[1728288580338,0.28143,2487.4,2487.3,3.2078]
[1728288580534,3.49873,2487.4,2487.3,3.2078]
[1728288585344,7.2373,2487.4,2486.9,0.7875]
[1728288585657,7.2373,2487.4,2486.9,0.3892]
[1728288585658,2.82,2487.0,2486.9,0.3892]
[1728288586147,3.2113,2487.0,2486.9,0.3892]
[1728288586748,3.49278,2487.0,2486.6,3.2078]
[1728288586951,2.82,2486.8,2486.6,3.2078]
[1728288588646,3.1015,2486.8,2486.6,3.2078]
[1728288589251,2.82,2486.8,2486.6,3.2078]
[1728288590749,3.1015,2486.8,2486.6,3.2078]
[1728288595452,3.1015,2486.8,2486.5,0.8223]
[1728288595651,2.82,2486.8,2486.7,3.2078]
[1728288596046,3.1015,2486.8,2486.7,3.2078]
[1728288596855,0.3913,2487.0,2486.8,0.2815]
[1728288597149,0.3913,2487.0,2486.9,0.8083]
[1728288600552,1.6913,2487.0,2486.9,0.8083]
[1728288603353,7.6913,2487.0,2485.9,1.04824937]
[1728288603554,7.6913,2487.0,2485.6,3.40655875]
[1728288603555,3.2078,2486.3,2486.1,0.8083]
[1728288603860,3.48935,2486.3,2486.2,0.8083]
[1728288604755,4.78935,2486.3,2486.2,0.8083]
[1728288606552,6.31935,2486.3,2486.2,0.8083]
[1728288608359,3.11155,2486.3,2486.2,0.8083]
[1728288608557,3.11155,2486.3,2485.5,4.8627171]
[1728288608558,10.0224,2486.3,2485.5,4.8627171]
[1728288608863,2.83,2485.6,2485.4,0.70595]
[1728288609353,2.83,2485.8,2485.5,0.8083]
[1728288609548,2.83,2485.8,2485.5,0.28164]
[1728288609764,2.83,2485.8,2485.7,0.8083]
[1728288618963,3.2202,2485.8,2485.7,0.8083]
[1728288622762,3.50181,2485.8,2485.7,0.8083]
[1728288623066,3.2202,2485.8,2485.7,0.8083]
[1728288625065,6.33181,2485.8,2485.7,0.8083]
[1728288625266,19.2812,2485.8,2485.0,3.2078]
[1728288625456,19.2812,2485.8,2485.4,0.8083]
[1728288625457,6.428,2485.8,2485.4,0.8083]
[1728288625863,0.28162,2485.7,2485.4,0.8083]
[1728288626268,6.428,2485.8,2485.4,0.8083]
[1728288626566,3.48944,2485.5,2485.4,0.8083]
[1728288626767,3.48944,2485.5,2484.9,1.4534]
[1728288626768,6.0378,2485.5,2484.9,0.4106]
[1728288626966,0.28167,2485.3,2485.2,0.8083]
[1728288628471,3.11167,2485.3,2485.2,0.8083]
[1728288628676,6.31947,2485.3,2485.2,0.8083]
[1728288630576,0.28168,2485.2,2484.9,0.4106]
[1728288630771,2.83,2485.0,2484.8,4.86428163]
[1728288631272,0.4027,2484.9,2484.8,4.86428163]
[1728288633380,0.4027,2484.9,2484.8,5.14600163]
[1728288634573,2.83,2485.0,2484.8,5.14600163]
[1728288636869,2.83,2485.0,2484.8,0.28172]
[1728288641278,0.70407,2485.7,2484.8,0.28172]
[1728288641279,2.83,2485.5,2484.9,4.72828]